fUSD/lending_fUSD_20240714
["ID","MTS","AMOUNT","RATE_DAILY","PERIOD"]
[332159860,1720995044855,-500.0,0.00013861,2]
[332159862,1720995044864,-500.0,0.00013861,2]
[332159864,1720995044873,-500.0,0.00013861,2]
[332159866,1720995044883,-500.0,0.00013861,2]
[332159868,1720995044892,-515.46,0.00013861,2]
[332159870,1720995044902,-500.0,0.00013861,2]
[332159872,1720995044911,-464.29,0.00013861,2]
[332159874,1720995044921,-474.96,0.00013861,2]
[332159875,1720995044932,-500.0,0.00013861,2]
[332159876,1720995044944,-345.14231099,0.00013861,2]
[332159877,1720995044953,-500.0,0.00013862,2]
[332159878,1720995044964,-1655.92,0.00013862,2]
[332159879,1720995044974,-442.28,0.00013862,2]
[332159880,1720995044984,-691.82126077,0.00013889,2]
[332159881,1720995044997,-170.02169165,0.00013889,2]
[332159882,1720995045007,-691.82126077,0.00013889,2]
[332159883,1720995045018,-406.2,0.0001389,2]
[332159885,1720995045028,-155.0,0.00013899,2]
[332159888,1720995045040,-155.0,0.00013899,2]
[332159890,1720995045049,-155.0,0.00013899,2]
[332159892,1720995045058,-308.61050773,0.00013899,2]
[332159893,1720995045069,-298.07742368,0.00013899,2]
[332159895,1720995045079,-262.12105087,0.00013899,2]
[332159897,1720995045089,-3325.0,0.000139,2]
[332159899,1720995045098,-167.07041145,0.000139,2]
[332159902,1720995045107,-500.0,0.000139,2]
[332159904,1720995045117,-1000.0,0.000139,5]
[332159906,1720995045127,-345.14231099,0.000139,2]
[332159908,1720995045136,-500.0,0.00013905,2]
[332159910,1720995045145,-385.96925274,0.00013912,2]
[332159912,1720995045155,-500.0,0.00013914,2]
[332159913,1720995045164,-500.0,0.00013914,2]
[332159915,1720995045173,-870.32,0.00013914,2]
[332159918,1720995045182,-548.09,0.00013914,2]
[332159920,1720995045191,-329.35,0.00013914,2]
[332159922,1720995045201,-500.0,0.00013914,2]
[332159924,1720995045210,-545.67,0.00013914,2]
[332159926,1720995045219,-500.0,0.00013915,2]
[332159928,1720995045229,-1320.13,0.00013915,2]
[332159930,1720995045240,-500.0,0.00013915,2]
[332159932,1720995045250,-500.0,0.00013915,2]
[332159934,1720995045260,-500.0,0.00013915,2]
[332159936,1720995045270,-150.0,0.00013915,2]
[332159938,1720995045281,-500.0,0.00013915,2]
[332159940,1720995045293,-500.0,0.00013915,2]
[332159942,1720995045302,-500.0,0.00013915,2]
[332159944,1720995045313,-500.0,0.00013915,2]
[332159946,1720995045328,-211.75,0.00013915,2]
[332159948,1720995045338,-500.0,0.00013915,2]
[332159950,1720995045346,-500.0,0.00013915,2]
[332159952,1720995045355,-500.0,0.00013915,2]
[332159954,1720995045370,-500.0,0.00013915,2]
[332159956,1720995045380,-500.0,0.00013915,2]
[332159958,1720995045389,-500.0,0.00013915,2]
[332159960,1720995045398,-500.0,0.00013915,2]
[332159962,1720995045407,-500.0,0.00013915,2]
[332159964,1720995045416,-163.32939541,0.00013915,2]
[332159966,1720995045427,-500.0,0.00013915,2]
[332159969,1720995045438,-500.0,0.00013915,2]
[332159971,1720995045449,-500.0,0.00013915,2]
[332159973,1720995045458,-520.7086154,0.00013915,2]
[332159975,1720995045468,-621.46,0.00013915,2]
[332159977,1720995045477,-500.0,0.00013915,2]
[332159979,1720995045486,-500.0,0.00013915,2]
[332159981,1720995045497,-500.0,0.00013915,2]
[332159983,1720995045507,-500.0,0.00013915,2]
[332159985,1720995045517,-500.0,0.00013915,2]
[332159987,1720995045527,-500.0,0.00013915,2]
[332159989,1720995045536,-500.0,0.00013915,2]
[332159990,1720995045545,-750.81,0.00013915,2]
[332159992,1720995045556,-500.0,0.00013915,2]
[332159995,1720995045567,-510.32,0.00013915,2]
[332159997,1720995045576,-500.0,0.00013915,2]
[332160000,1720995045586,-500.0,0.00013915,2]
[332160002,1720995045596,-500.0,0.00013915,2]
[332160004,1720995045606,-731.21,0.00013915,2]
[332160006,1720995045616,-500.0,0.00013915,2]
[332160008,1720995045626,-642.73,0.00013915,2]
[332160010,1720995045636,-500.0,0.00013915,2]
[332160012,1720995045646,-500.0,0.00013915,2]
[332160014,1720995045656,-515.0,0.00013915,2]
[332160016,1720995045665,-500.0,0.00013915,2]
[332160018,1720995045674,-500.0,0.00013915,2]
[332160019,1720995045684,-528.85,0.00013915,2]
[332160021,1720995045693,-500.0,0.00013915,2]
[332160023,1720995045703,-733.88,0.00013915,2]
[332160025,1720995045712,-219.9,0.00013915,2]
[332160027,1720995045721,-500.0,0.00013915,2]
[332160033,1720995045769,-360.84,0.00013915,2]
[332160035,1720995045778,-500.0,0.00013915,2]
[332160037,1720995045787,-500.0,0.00013915,2]
[332160039,1720995045797,-500.0,0.00013915,2]
[332160041,1720995045806,-1062.62,0.00013915,2]
[332160043,1720995045816,-628.5,0.00013915,2]
[332160045,1720995045825,-500.0,0.00013915,2]
[332160048,1720995045834,-1020.34,0.00013915,2]
[332160050,1720995045843,-370.94,0.00013915,2]
[332160053,1720995045852,-476.61107418,0.00013915,2]
[332160055,1720995045861,-500.0,0.00013915,2]
[332160058,1720995045870,-965.3,0.00013915,2]
[332160060,1720995045879,-500.0,0.00013915,2]
[332160063,1720995045888,-643.0,0.00013915,2]
[332160065,1720995045897,-500.0,0.00013915,2]
[332160067,1720995045906,-1655.92,0.00013916,2]
[332160069,1720995045915,-500.0,0.00013916,2]
[332160071,1720995045924,-500.0,0.00013916,2]
[332160073,1720995045933,-500.0,0.00013916,2]
[332160075,1720995045943,-500.0,0.00013916,2]
[332160077,1720995045952,-275.14,0.00013916,2]
[332160079,1720995045962,-541.3,0.00013916,2]
[332160081,1720995045972,-500.0,0.00013969,2]
[332160083,1720995045982,-1320.13,0.00013969,2]
[332160085,1720995045991,-500.0,0.00013969,2]
[332160087,1720995046001,-500.0,0.00013969,2]
[332160089,1720995046011,-500.0,0.00013969,2]
[332160091,1720995046020,-150.0,0.00013969,2]
[332160093,1720995046031,-270.5,0.00013969,2]
[332160095,1720995046040,-500.0,0.00013969,2]
[332160097,1720995046050,-500.0,0.00013969,2]
[332160099,1720995046059,-500.0,0.00013969,2]
[332160101,1720995046071,-500.0,0.00013969,2]
[332160103,1720995046083,-500.0,0.00013969,2]
[332160105,1720995046093,-500.0,0.00013969,2]
[332160106,1720995046103,-503.43256332,0.00013969,2]
[332160108,1720995046114,-500.0,0.00013969,2]
[332160110,1720995046125,-500.0,0.00013969,2]
[332160112,1720995046136,-189.08,0.00013969,2]
[332160113,1720995046146,-500.0,0.00013969,2]
[332160115,1720995046155,-500.0,0.00013969,2]
[332160117,1720995046164,-500.0,0.00013969,2]
[332160119,1720995046174,-500.0,0.00013969,2]
[332160120,1720995046183,-500.0,0.00013969,2]
[332160122,1720995046194,-500.0,0.00013969,2]
[332160123,1720995046203,-500.0,0.00013969,2]
[332160125,1720995046213,-596.88,0.00013969,2]
[332160127,1720995046223,-500.0,0.00013969,2]
[332160128,1720995046234,-500.0,0.00013969,2]
[332160130,1720995046243,-750.81,0.00013969,2]
[332160132,1720995046252,-500.0,0.00013969,2]
[332160134,1720995046262,-510.32,0.00013969,2]
[332160135,1720995046272,-500.0,0.00013969,2]
[332160137,1720995046283,-500.0,0.00013969,2]
[332160139,1720995046296,-500.0,0.00013969,2]
[332160141,1720995046306,-731.21,0.00013969,2]
[332160142,1720995046317,-500.0,0.00013969,2]
[332160144,1720995046326,-500.0,0.00013969,2]
[332160146,1720995046336,-500.0,0.00013969,2]
[332160148,1720995046345,-500.0,0.00013969,2]
[332160149,1720995046354,-500.0,0.00013969,2]
[332160151,1720995046364,-500.0,0.00013969,2]
[332160153,1720995046374,-500.0,0.00013969,2]
[332160154,1720995046383,-733.88,0.00013969,2]
[332160156,1720995046392,-500.0,0.00013969,2]
[332160158,1720995046402,-500.0,0.00013969,2]
[332160160,1720995046411,-500.0,0.00013969,2]
[332160161,1720995046419,-500.0,0.00013969,2]
[332160163,1720995046429,-870.32,0.00013969,2]
[332160164,1720995046438,-560.48,0.00013969,2]
[332160166,1720995046447,-548.09,0.00013969,2]
[332160168,1720995046457,-1062.62,0.00013969,2]
[332160170,1720995046466,-500.0,0.00013969,2]
[332160172,1720995046476,-1020.34,0.00013969,2]
[332160174,1720995046485,-965.3,0.00013969,2]
[332160175,1720995046495,-500.0,0.00013969,2]
[332160177,1720995046504,-545.67,0.00013969,2]
[332160179,1720995046514,-500.0,0.00013969,2]
[332160181,1720995046524,-2106.83923567,0.00013969,3]
[332160182,1720995046534,-500.0,0.0001397,2]
[332160184,1720995046543,-283.52794351,0.0001397,2]
[332160186,1720995046552,-500.0,0.0001397,2]
[332160188,1720995046562,-500.0,0.0001397,2]
[332160190,1720995046575,-2106.83923567,0.0001397,3]
[332160192,1720995046585,-1655.92,0.00013971,2]
[332160193,1720995046594,-1000.0,0.00013973,5]
[332160195,1720995046603,-500.0,0.00013979,2]
[332160197,1720995046612,-16854.7138854,0.0001398,3]
[332160199,1720995046622,-18961.553121,0.0001398,3]
[332160201,1720995046631,-2106.83923567,0.00013989,3]
[332160203,1720995046641,-29495.7492994,0.0001399,3]
[332160204,1720995046650,-605.896409,0.00013998,2]
[332160206,1720995046660,-908.844614,0.00013998,2]
[332160208,1720995046669,-1211.792819,0.00013998,2]
[332160210,1720995046679,-1514.741024,0.00013998,2]
[332160212,1720995046688,-2120.637434,0.00013998,2]
[332160213,1720995046697,-2423.585639,0.00013998,2]
[332160215,1720995046707,-314.03562236,0.00013999,2]
[332160217,1720995046716,-500.0,0.00013999,2]
[332160219,1720995046725,-500.0,0.00013999,2]
[332160221,1720995046735,-428.12,0.00013999,2]
[332160222,1720995046744,-208.55018496,0.00013999,2]
[332160224,1720995046753,-164.00407613,0.00013999,2]
[332160226,1720995046763,-209.00279412,0.00013999,2]
[332160228,1720995046771,-287530.59280094,0.00014,2]
[332160230,1720995046781,-2710353.29009626,0.00014,2]
[332160249,1720995046999,-331.20767181,0.00014,2]
[332160256,1720995047080,-306.99,0.00011097,2]
[332160258,1720995047092,-663.77448315,0.00011097,2]
[332160260,1720995047103,-12145.99096132,0.00011097,2]
[332160262,1720995047113,-471.05343353,0.00013999,2]
[332160264,1720995047124,-12000.25225263,0.00014,2]
[332160266,1720995047136,-475.21517826,0.00014,2]
[332160268,1720995047149,-27780.48201704,0.00014,2]
[332160270,1720995047161,-3650.30341244,0.00014,2]
[332160273,1720995047174,-4832.22556236,0.00014,2]
[332160275,1720995047186,-1609.12646155,0.00014,2]
[332160277,1720995047199,-1201.23505853,0.00014,2]
[332160278,1720995047211,-17756.86832099,0.00014,2]
[332160279,1720995047224,-19832.11977958,0.00014,2]
[332160280,1720995047236,-608.01988394,0.00014,2]
[332160281,1720995047247,-550.93752934,0.00014,2]
[332160282,1720995047259,-802.49539035,0.00014,2]
[332160283,1720995047269,-3212.69499473,0.00014,2]
[332160284,1720995047280,-3255.0,0.00014,2]
[332160285,1720995047299,-2402.81500127,0.00014,2]
[332160286,1720995047310,-581.62307989,0.00014,2]
[332160287,1720995047334,-654.49768112,0.00014,2]
[332160288,1720995047345,-742.7816487,0.00014,2]
[332160289,1720995047357,-661.41118297,0.00014,2]
[332160290,1720995047370,-993.28232923,0.00014,2]
[332160291,1720995047383,-1777.7292,0.00014,2]
[332160292,1720995047394,-783.317292,0.00014,2]
[332160293,1720995047467,-661.40041474,0.0001375,2]
[332160294,1720995047481,-783.75520737,0.0001375,2]
[332160295,1720995047493,-1223.63437789,0.0001375,2]
[332160296,1720995047502,-87.2621814,0.00014,2]
[332160297,1720995047514,-769.64857869,0.00014,2]
[332160298,1720995047526,-405.5664405,0.00014,2]
[332160299,1720995047538,-1627.83317733,0.00014,2]
[332160302,1720995047549,-10625.40889593,0.00014,2]
[332160304,1720995047560,-7140.0,0.00014,2]
[332160306,1720995047574,-677.64226658,0.00014,2]
[332160308,1720995047587,-1014.6249167,0.00014,2]
[332160310,1720995047598,-3641.67389993,0.00014,2]
[332160313,1720995047609,-1167.24970089,0.00014,2]
[332160319,1720995047797,-6517.10792,0.00014,2]
[332160320,1720995047808,-26821.11545556,0.00014,2]
[332160321,1720995047822,-504.46220104,0.00014,2]
[332160322,1720995047834,-297.95376087,0.00014,2]
[332160323,1720995047846,-293.30521316,0.00014,2]
[332160324,1720995047857,-10750.945965,0.00014,2]
[332160325,1720995047869,-3924.53627189,0.00014,2]
[332160326,1720995047881,-300.08603421,0.00014,2]
[332160327,1720995047892,-685.40798774,0.00014,2]
[332160328,1720995047904,-727.54393735,0.00014,2]
[332160329,1720995047924,-329.22275465,0.00013999,2]
[332160330,1720995047934,-686.87724535,0.00014,2]
[332160331,1720995047945,-576.2,0.00014,2]
[332160332,1720995047956,-735.915,0.00014,2]
[332160333,1720995047967,-17365.33401791,0.00014,2]
[332160334,1720995047979,-1388.89874563,0.00014,2]
[332160335,1720995047992,-698.4068729,0.00014,2]
[332160336,1720995048005,-302.0,0.00014,2]
[332160337,1720995048017,-2833.13889606,0.00014,2]
[332160338,1720995048036,-794.19253862,0.00014,2]
[332160339,1720995048057,-164.00407613,0.00013989,2]
[332160340,1720995048066,-1282.56909107,0.00014,2]
[332160341,1720995048077,-680.3546727,0.00014,2]
[332160342,1720995048088,-764.825,0.00014,2]
[332160343,1720995048102,-2786.62573317,0.00014,2]
[332160344,1720995048114,-666.8,0.00014,2]
[332160345,1720995048126,-6329.77169579,0.00014,2]
[332160346,1720995048137,-697.57713183,0.00014,2]
[332160347,1720995048148,-1619.88021858,0.00014,2]
[332160348,1720995048269,-771.65502246,0.00013805,2]
[332160349,1720995048280,-681.85241609,0.00013805,2]
[332160350,1720995048307,-685.7040488,0.00013805,2]
[332160351,1720995048320,-529.57851265,0.00013805,2]
[332160352,1720995048330,-1729.96839818,0.0001386,2]
[332160353,1720995048341,-797.12424849,0.0001386,2]
[332160354,1720995048353,-141.69735333,0.0001386,2]
[332160355,1720995048362,-2668.79,0.00013915,2]
[332160356,1720995048373,-2668.79,0.00013969,2]
[332160357,1720995048383,-209.00279412,0.00013989,2]
[332160358,1720995048392,-132948.37500145,0.00014,2]
[332160790,1720995202126,500.0,0.00025448,120]
[332160791,1720995202538,500.0,0.00026999,120]
[332160792,1720995206413,3000.0,0.00026999,120]
[332160793,1720995211336,500.0,0.00026999,120]
[332160794,1720995235106,151.0,0.00020469,120]
[332160795,1720995420877,4684.57,0.00018849,30]
[332160801,1720995505861,22578.813689,0.0002,20]
[332160802,1720995707262,259.07,9.573e-05,2]
[332160803,1720995784028,18804.95636307,9.573e-05,2]
[332160804,1720995809008,151.0,0.00020469,120]
[332160805,1720995826154,500.0,9.573e-05,2]
[332160806,1720995826482,500.0,9.573e-05,2]
[332160807,1720995826810,500.0,9.573e-05,2]
[332160808,1720995827126,500.0,9.573e-05,2]
[332160809,1720995827460,500.0,9.573e-05,2]
[332160810,1720995827781,500.0,9.573e-05,2]
[332160811,1720995828125,500.0,9.573e-05,2]
[332160812,1720995828471,500.0,9.573e-05,2]
[332160813,1720995828792,500.0,9.573e-05,2]
[332160814,1720995829293,500.0,9.573e-05,2]
[332160815,1720995829621,500.0,9.573e-05,2]
[332160816,1720995829950,500.0,9.573e-05,2]
[332160817,1720995830283,500.0,9.573e-05,2]
[332160818,1720995830586,500.0,9.573e-05,2]
[332160819,1720995831094,500.0,9.573e-05,2]
[332160820,1720995831265,500.0,9.573e-05,2]
[332160821,1720995831607,500.0,9.573e-05,2]
[332160822,1720995831929,500.0,9.573e-05,2]
[332160823,1720995832256,500.0,9.573e-05,2]
[332160824,1720995832781,500.0,9.573e-05,2]
[332160825,1720995832933,500.0,9.573e-05,2]
[332160826,1720995833250,500.0,9.573e-05,2]
[332160827,1720995834223,500.0,9.573e-05,2]
[332160828,1720995834640,500.0,9.573e-05,2]
[332160829,1720995835124,500.0,9.573e-05,2]
[332160830,1720995835447,500.0,9.573e-05,2]
[332160831,1720995835767,500.0,9.573e-05,2]
[332160832,1720995836089,500.0,9.573e-05,2]
[332160833,1720995836433,500.0,9.573e-05,2]
[332160834,1720995837374,500.0,9.573e-05,2]
[332160835,1720995837702,500.0,9.573e-05,2]
[332160836,1720995838026,500.0,9.573e-05,2]
[332160837,1720995838512,500.0,9.573e-05,2]
[332160838,1720995838832,500.0,9.573e-05,2]
[332160839,1720995839177,500.0,9.573e-05,2]
[332160840,1720995839487,500.0,9.573e-05,2]
[332160841,1720995839817,500.0,9.573e-05,2]
[332160842,1720995840140,500.0,9.573e-05,2]
[332160843,1720995840474,500.0,9.573e-05,2]
[332160844,1720995840790,500.0,9.573e-05,2]
[332160845,1720995841365,500.0,9.573e-05,2]
[332160846,1720995841462,500.0,9.573e-05,2]
[332160847,1720995841798,500.0,9.573e-05,2]
[332160848,1720995842232,500.0,9.573e-05,2]
[332160849,1720995842559,500.0,9.573e-05,2]
[332160850,1720995842900,500.0,9.573e-05,2]
[332160851,1720995843220,500.0,9.573e-05,2]
[332160852,1720995843593,500.0,9.573e-05,2]
[332160853,1720995843921,500.0,9.573e-05,2]
[332160854,1720995844263,500.0,9.573e-05,2]
[332160855,1720995844583,500.0,9.573e-05,2]
[332160856,1720995845022,500.0,9.573e-05,2]
[332160857,1720995845341,500.0,9.573e-05,2]
[332160858,1720995846233,500.0,9.573e-05,2]
[332160859,1720995846564,500.0,9.573e-05,2]
[332160860,1720995846882,500.0,9.573e-05,2]
[332160861,1720995847212,500.0,9.573e-05,2]
[332160862,1720995847544,500.0,9.573e-05,2]
[332160863,1720995847863,574.0,9.573e-05,2]
[332160864,1720995918048,18804.95636307,9.573e-05,2]
[332160867,1720995996817,10000.0,0.00027,120]
[332160868,1720996014111,10000.0,0.00027,120]
[332160870,1720996023231,4294.18,0.00018849,30]
[332160871,1720996032804,10000.0,0.00027,120]
[332160872,1720996042679,205.0,9.8e-05,2]
[332160874,1720996049025,10000.0,0.00027,120]
[332160875,1720996050577,162.53,9.123e-05,2]
[332160876,1720996065691,151.0,0.00020469,120]
[332160877,1720996071507,10000.0,0.00027,120]
[332160878,1720996076147,226.84246782,0.00023,120]
[332160879,1720996084230,469.61223352,0.00024,120]
[332160880,1720996088076,1778.88948275,0.00025,120]
[332160881,1720996097766,1640.0,0.00027,120]
[332160882,1720996108711,25201.54727892,0.00025,60]
[332160883,1720996111120,23652.08987926,0.00012,30]
[332160884,1720996123341,624.46992622,0.00025,120]
[332160885,1720996127134,443.98834315,0.0002509,120]
[332160886,1720996128268,2325.37951081,0.00027,120]
[332160912,1720996231980,-351.96,0.00010044,2]
[332160913,1720996233003,-106.08,0.00010044,2]
[332160914,1720996233013,-300.0,0.00010784,2]
[332160915,1720996233025,-10022.0,0.00010785,2]
[332160916,1720996233035,-7484.22545017,0.00011097,2]
[332160917,1720996233045,-150.0,0.00011097,2]
[332160918,1720996233055,-677.85878921,0.00011098,2]
[332160919,1720996233066,-431.53343721,0.00011098,2]
[332160920,1720996233076,-196.62196732,0.00011098,2]
[332160921,1720996233086,-202.68124914,0.00011098,2]
[332160924,1720996233309,-4144.8661632,0.00011098,2]
[332160925,1720996233320,-2142.4852451,0.00011098,2]
[332160926,1720996233330,-527.64006911,0.00011098,2]
[332160927,1720996233340,-292.54231197,0.00011098,2]
[332160928,1720996233349,-309.92840343,0.00011098,2]
[332160929,1720996233359,-156.0,0.00011197,2]
[332160930,1720996233368,-156.0,0.00011197,2]
[332160931,1720996233377,-1722.29,0.00011396,2]
[332160932,1720996233387,-354.72,0.00011396,2]
[332160933,1720996233396,-150.0,0.000114,2]
[332160934,1720996233405,-6024.9124456,0.00011406,2]
[332160935,1720996233423,-396.51876854,0.00011406,2]
[332160936,1720996233434,-17478.56878586,0.00011406,2]
[332160937,1720996233443,-500.0,0.00011433,2]
[332160938,1720996233452,-1208.48070783,0.00011603,2]
[332160939,1720996233462,-437.62370046,0.00011603,2]
[332160940,1720996233472,-1000.0,0.00011819,2]
[332160941,1720996233481,-420.0,0.00011853,2]
[332160942,1720996233491,-250.0,0.00011897,2]
[332160943,1720996233500,-4388.55,0.00011918,2]
[332160944,1720996233510,-250.0,0.00011936,2]
[332160945,1720996233520,-213.18,0.0001199,2]
[332160946,1720996233529,-2254.21,0.00012,2]
[332160947,1720996233539,-2254.21,0.00012,2]
[332160948,1720996233549,-2254.21,0.00012,2]
[332160949,1720996233558,-181.85,0.00012004,2]
[332160950,1720996233569,-2254.21,0.00012051,2]
[332160951,1720996233578,-255.0,0.00012151,2]
[332160952,1720996233588,-529.42495202,0.00012302,2]
[332160953,1720996233598,-458.04,0.00012308,2]
[332160954,1720996233607,-2254.21,0.00012349,2]
[332160955,1720996233616,-499.99,0.00012359,2]
[332160956,1720996233626,-168.47,0.00012403,2]
[332160957,1720996233635,-2254.21,0.00012415,2]
[332160958,1720996233644,-2254.21,0.00012415,2]
[332160959,1720996233654,-2254.21,0.00012415,2]
[332160960,1720996233663,-2254.21,0.00012415,2]
[332160961,1720996233674,-2254.21,0.00012415,2]
[332160962,1720996233683,-2254.21,0.00012415,2]
[332160963,1720996233693,-2254.21,0.00012415,2]
[332160964,1720996233702,-2254.21,0.00012415,2]
[332160965,1720996233711,-2254.21,0.00012416,2]
[332160966,1720996233721,-644.62,0.00012425,2]
[332160967,1720996233730,-6064.18,0.00012425,2]
[332160968,1720996233740,-1292.91,0.00012426,2]
[332160969,1720996233749,-299.99,0.00012426,2]
[332160970,1720996233759,-2254.21,0.00012426,2]
[332160971,1720996233768,-2254.21,0.00012426,2]
[332160972,1720996233777,-2254.21,0.00012426,2]
[332160973,1720996233787,-2254.21,0.00012426,2]
[332160974,1720996233796,-2254.21,0.00012426,2]
[332160975,1720996233806,-2254.21,0.00012426,2]
[332160976,1720996233816,-2254.21,0.00012426,2]
[332160977,1720996233826,-2254.21,0.00012426,2]
[332160978,1720996233835,-2254.21,0.00012426,2]
[332160979,1720996233845,-2254.21,0.00012426,2]
[332160980,1720996233859,-2254.21,0.00012426,2]
[332160981,1720996233869,-2254.21,0.00012426,2]
[332160982,1720996233879,-2254.21,0.00012426,2]
[332160983,1720996233889,-2254.21,0.00012426,2]
[332160984,1720996233899,-2254.21,0.00012426,2]
[332160985,1720996233908,-2254.21,0.00012426,2]
[332160986,1720996233918,-2254.21,0.00012426,2]
[332160987,1720996233929,-2254.21,0.00012426,2]
[332160988,1720996233938,-2254.21,0.00012426,2]
[332160989,1720996233949,-2254.21,0.00012426,2]
[332160990,1720996233959,-2254.21,0.00012426,2]
[332160991,1720996233968,-2254.21,0.00012426,2]
[332160992,1720996233978,-2254.21,0.00012426,2]
[332160993,1720996233987,-2254.21,0.00012426,2]
[332160994,1720996233997,-2254.21,0.00012426,2]
[332160995,1720996234007,-2254.21,0.00012426,2]
[332160996,1720996234016,-2254.21,0.00012426,2]
[332160997,1720996234026,-2254.21,0.00012508,2]
[332160998,1720996234035,-2254.21,0.00012508,2]
[332160999,1720996234044,-200.0,0.00012518,2]
[332161000,1720996234053,-169.86830857,0.000126,2]
[332161001,1720996234063,-2254.21,0.00012723,2]
[332161002,1720996234072,-1620.1574,0.00012776,2]
[332161003,1720996234081,-2254.21,0.00012826,2]
[332161004,1720996234091,-2254.21,0.00012866,2]
[332161005,1720996234100,-2254.21,0.00012866,2]
[332161006,1720996234109,-2254.21,0.00012866,2]
[332161007,1720996234119,-2254.21,0.00012866,2]
[332161008,1720996234128,-2254.21,0.00012866,2]
[332161009,1720996234137,-2254.21,0.00012866,2]
[332161010,1720996234147,-2254.21,0.00012866,2]
[332161011,1720996234156,-6464.529,0.00012877,2]
[332161012,1720996234165,-169.68,0.00012968,2]
[332161013,1720996234175,-2254.21,0.0001299,2]
[332161014,1720996234184,-2254.21,0.0001299,2]
[332161015,1720996234194,-2254.21,0.0001299,2]
[332161016,1720996234203,-2254.21,0.0001299,2]
[332161017,1720996234213,-2254.21,0.0001299,2]
[332161018,1720996234223,-2254.21,0.0001299,2]
[332161019,1720996234232,-2254.21,0.0001299,2]
[332161020,1720996234241,-2254.21,0.0001299,2]
[332161021,1720996234250,-2254.21,0.0001299,2]
[332161022,1720996234260,-2254.21,0.0001299,2]
[332161023,1720996234269,-2254.21,0.0001299,2]
[332161024,1720996234279,-2254.21,0.0001299,2]
[332161025,1720996234288,-2254.21,0.0001299,2]
[332161026,1720996234297,-2254.21,0.0001299,2]
[332161027,1720996234306,-2254.21,0.0001299,2]
[332161028,1720996234316,-2254.21,0.0001299,2]
[332161029,1720996234325,-2254.21,0.0001299,2]
[332161030,1720996234335,-2254.21,0.0001299,2]
[332161031,1720996234344,-2254.21,0.0001299,2]
[332161032,1720996234354,-2254.21,0.0001299,2]
[332161033,1720996234363,-2254.21,0.0001299,2]
[332161034,1720996234373,-2254.21,0.0001299,2]
[332161035,1720996234382,-2254.21,0.0001299,2]
[332161036,1720996234392,-2254.21,0.0001299,2]
[332161037,1720996234402,-2254.21,0.0001299,2]
[332161038,1720996234411,-2254.21,0.0001299,2]
[332161039,1720996234421,-2254.21,0.0001299,2]
[332161040,1720996234430,-2254.21,0.0001299,2]
[332161041,1720996234440,-2254.21,0.0001299,2]
[332161042,1720996234449,-2254.21,0.0001299,2]
[332161043,1720996234458,-2254.21,0.0001299,2]
[332161044,1720996234467,-2254.21,0.0001299,2]
[332161045,1720996234477,-2254.21,0.0001299,2]
[332161046,1720996234486,-2254.21,0.0001299,2]
[332161047,1720996234495,-2254.21,0.0001299,2]
[332161048,1720996234505,-2254.21,0.0001299,2]
[332161049,1720996234514,-2254.21,0.0001299,2]
[332161050,1720996234524,-2254.21,0.0001299,2]
[332161051,1720996234534,-2254.21,0.0001299,2]